Cogmind - Beta 16.1 @@@ ROGUE MODE // 2026.03.03 @ 12:33:33 Player: Clong Result: Destroyed by Y-45 Defender with Beam Rifle Performance ------------- Evolutions (1) 500 Regions Visited (2) 400 Robots Destroyed (23) 115 Value Destroyed (515) 515 Prototype IDs (2) 40 Alien Tech Used (0) 0 Bonus (0) 0 TOTAL SCORE: 1570 Bonus ------- None Cogmind --------- Core Integrity 0/400 Matter 170/300 Energy 99/100 System Corruption 0% Temperature Cool (9) Movement Core (100) Ox1 Location -9/Materials Parts ------- > --- POWER (1) -------- (None) > --- PROPULSION (3) --- (None) > --- UTILITY (2) ------ Small Storage Unit > --- WEAPON (3) ------- (None) > --- INVENTORY (8) ---- Light Ion Engine Nuclear Core Aluminum Leg Aluminum Leg Compact Wheel Peak State ------------ > --- POWER ------------ Light Deuterium Engine > --- PROPULSION ------- Light Treads Light Treads Wheel > --- UTILITY ---------- Small Storage Unit Structural Scanner > --- WEAPON ----------- Light Cannon Grenade Launcher > --- INVENTORY -------- Light Ion Engine Nuclear Core Aluminum Leg Aluminum Leg Compact Wheel EM Pulse Gun Small Laser Light Assault Rifle [Rating: 11] Favorites ----------- Power Light Ion Engine Engine Light Ion Engine Propulsion Light Treads Treads Light Treads Wheel Wheel Flight Unit VTOL Module Utility Small Storage Unit Device Structural Scanner Storage Small Storage Unit Weapon Grenade Launcher Energy Gun EM Pulse Gun Ballistic Gun Light Assault Rifle Ballistic Cannon Light Cannon Launcher Grenade Launcher Build | -11 -10 -9 ------- Run | Yrd Mat Mat Slots Evolved 2 | . . 2 Power . | . . . Propulsion 1 | . . 1 Utility . | . . . Weapon 1 | . . 1 Parts Attached 13 | 6 3 4 Power 2 | 1 . 1 Engine 2 | 1 . 1 Core . | . . . Reactor . | . . . Propulsion 4 | 2 . 2 Treads 2 | 2 . . Leg . | . . . Wheel 1 | . . 1 Hover . | . . . Flight 1 | . . 1 Utility 2 | 1 1 . Device 1 | . 1 . Storage 1 | 1 . . Processor . | . . . Hackware . | . . . Protection . | . . . Artifact . | . . . Weapon 5 | 2 2 1 Energy Gun 2 | 1 . 1 Energy Cannon . | . . . Ballistic Gun 1 | 1 . . Ballistic Cannon 1 | . 1 . Launcher 1 | . 1 . Special Weapon . | . . . Impact Weapon . | . . . Slashing Weapon . | . . . Piercing Weapon . | . . . Special Melee Weapon . | . . . Unidentified Prototypes . | . . . Parts Lost 11 | . . 11 Power 1 | . . 1 Propulsion 4 | . . 4 Utility 1 | . . 1 Weapon 5 | . . 5 Highest Loss Streak 11 | . . 11 To Critical Strikes . | . . . Average Backups 6 | 3 6 6 Power . | . . 1 Propulsion 3 | 2 4 3 Utility . | . . . Weapon 1 | 1 2 1 Tool/Special . | . . . Unused Backups 4 | . . 4 Power 1 | . . 1 Propulsion 3 | . . 3 Utility . | . . . Weapon . | . . . Tool/Special . | . . . Average Slot Usage (%) 85 | . 95 74 Engine 11 | . 14 8 Treads 22 | . 28 15 Wheel 4 | . . 9 Device 8 | . 9 7 Storage 12 | . 14 11 Energy Gun 6 | . 6 7 Ballistic Gun 1 | . 1 2 Ballistic Cannon 6 | . 7 5 Launcher 9 | . 12 5 Peak Build Rating 11 | 6 7 11 Average Rating 7 | 4 6 8 On Entrance 4 | . 6 7 Avg Prop Armor Cover (%) 16 | . . 16 Naked Turns . | . . . Heaviest Build 19 | 11 15 19 Greatest Support 40 | 40 40 10 Greatest Overweight (x) 1 | . . 1 Average Overweight (x) . | . . 1 Largest Inventory Capacity 8 | 8 8 8 Average Capacity 7 | 7 8 8 Most Carried 8 | 8 7 8 Average Carried 6 | 4 6 6 Final Capacity 8 | 8 8 8 Final Carried 7 | 5 7 5 Class Distribution -------------------- 84% | Mutant 15% | Skirmisher Dominant Class ---------------- Mutant | -10/Materials Mutant | -9/Materials Resources | -11 -10 -9 ----------- Run | Yrd Mat Mat Matter Collected 445 | 211 136 98 Remotely . | . . . Salvage Created 497 | . 285 212 Parts 39 | . 30 9 Haulers Intercepted . | . . . Recyclers Shooed 2 | . 1 1 Parts Field Recycled . | . . . Retrieved Matter . | . . . Parts Self-Destructed . | . . . Prevented . | . . . Parts Restored . | . . . Kills | -11 -10 -9 ------- Run | Yrd Mat Mat Combat Hostiles Destroyed 17 | . 11 6 Guns 2 | . . 2 Cannons 5 | . 5 . AOE 10 | . 6 4 Classes Destroyed 8 | . 6 2 Worker 2 | . 1 1 Builder 2 | . 2 . Recycler 1 | . 1 . Watcher 1 | . 1 . Swarmer 6 | . 6 . Grunt 8 | . 5 3 Brawler 1 | . . 1 Sentry 2 | . . 2 Best Kill Streak 10 | . 10 3 Combat Bots Only 8 | . 8 3 Max Kills in Single Turn 3 | . 3 2 Gunslinging . | . . . Exploded 2 | . 2 2 Melee . | . . . Uniques/NPCs Destroyed . | . . . Combat | -11 -10 -9 -------- Run | Yrd Mat Mat Hostile Shots Fired 163 | . 22 141 Missed 42 | . 6 36 Hits 121 | . 16 105 Projectile 121 | . 16 105 Damage Taken 1466 | . 277 1189 Core 447 | . 41 406 Absorbed by Shields . | . . . Regen/Repaired (Parts) 55 | . . 55 Core Remaining (%) 91 | 100 83 . Volleys Fired 31 | . 12 19 Largest 3 | . 2 3 Hottest 100 | . 60 100 Shots Fired 64 | . 24 40 Gun 23 | . . 23 Cannon 21 | . 12 9 Launcher 20 | . 12 8 Special . | . . . Kinetic 27 | . 12 15 Thermal 6 | . . 6 Explosive 20 | . 12 8 Electromagnetic 11 | . . 11 Robot Hit Streak 12 | . 6 12 Robot Miss Streak 3 | . 3 3 Penetration Max . | . . . Secondary Targets . | . . . Shots Hit Robots 34 | . 10 24 Core Hits 39 | . 22 17 Critical Kills . | . . . Critical Parts Destroyed . | . . . Critical Strikes 1 | . 1 . Blast 1 | . 1 . Melee Attacks . | . . . Impact . | . . . Slashing . | . . . Piercing . | . . . Sneak Attacks . | . . . Combat Hostiles . | . . . Follow-up Attacks . | . . . Damage Inflicted 1406 | . 761 645 Guns 146 | . . 146 Cannons 234 | . 123 111 Explosions 1014 | . 637 377 Melee . | . . . Ramming 12 | . 1 11 Kinetic 259 | . 123 136 Thermal 66 | . . 66 Explosive 970 | . 637 333 Electromagnetic 99 | . . 99 Impact . | . . . Slashing . | . . . Piercing . | . . . Highest Corruption . | . . . Average Corruption . | . . . Corruption Purged . | . . . Corruption Blocked . | . . . Overload Shots . | . . . Overflow Damage 18 | . 6 12 Projectiles . | . . . Explosions 18 | . 6 12 Melee . | . . . Knockbacks . | . . . Impact . | . . . Kinetic . | . . . Secondary . | . . . Self-Inflicted Damage 209 | . 108 101 Shots 9 | . 5 4 Rammed 5 | . 1 4 Targets Rammed 5 | . 1 4 Kicked . | . . . Crushed . | . . . Highest Temperature 117 | . 18 117 Average Temperature 38 | . 14 44 Received Heat Transfer 468 | . 78 390 Siege Activations . | . . . Martial Activations . | . . . Shielding Activations . | . . . Robots Disrupted . | . . . Combat Hostiles . | . . . Robots Corrupted . | . . . Combat Hostiles . | . . . Parts Fried . | . . . Impact Corruptions . | . . . Robots Melted . | . . . Combat Hostiles . | . . . Parts Melted . | . . . Heat Transferred 100 | . . 100 Parts Sabotaged . | . . . Parts Stolen . | . . . Parts Stripped . | . . . Power Chain Reactions 1 | . . 1 Alert | -11 -10 -9 ------- Run | Yrd Mat Mat Maximum Alert Level 1 | . 1 . Low Security (%) 81 | 100 61 100 Level 1 18 | . 38 . Level 2 . | . . . Level 3 . | . . . Level 4 . | . . . Level 5 . | . . . High Security . | . . . Max Security . | . . . Peak Influence 291 | . 291 191 Initial 114 | . . 114 Average 109 | . 124 129 Influence Increases 573 | . 376 197 Destroy 0b10 Robot/C 340 | . 220 120 Destroy 0b10 Robot/NC 30 | . 25 5 Destroy Leader 72 | . 42 30 Successful Hack 20 | . 15 5 Disable Machine 15 | . 15 . Destroy Structure 96 | . 59 37 Influence Decreases 502 | . 105 397 Entered New Map 157 | . . 157 Time Decay 235 | . 105 130 Lost Part 110 | . . 110 Squads Dispatched 3 | . 1 2 Investigation . | . . . Extermination . | . . . Reinforcement 3 | . 1 2 Assault . | . . . Garrison . | . . . Intercept . | . . . Searches Triggered . | . . . Construction Impeded 1 | . . 1 Haulers Reinforced . | . . . Active Scanning Responses . | . . . Cargo Convoy Interrupts . | . . . Stealth | -11 -10 -9 --------- Run | Yrd Mat Mat Distress Signals 4 | . 1 3 Communications Jammed . | . . . Distress Signals . | . . . Times Spotted 34 | . 16 18 Peak Tracking Total 9 | . 4 9 Tactical Retreats . | . . . Traps | -11 -10 -9 ------- Run | Yrd Mat Mat Traps Triggered . | . . . Indirectly . | . . . Trap Hack Attempts . | . . . Triggered . | . . . Disarmed . | . . . Reprogrammed . | . . . Reused . | . . . Traps Extracted . | . . . Installed . | . . . Triggered . | . . . Machines | -11 -10 -9 ---------- Run | Yrd Mat Mat Machines Disabled 1 | . 1 . Max in Single Turn 1 | . 1 . Machines Repaired . | . . . Machines Dismantled . | . . . Machines Sabotaged . | . . . Overloaded Fab Kills . | . . . Hacking | -11 -10 -9 --------- Run | Yrd Mat Mat Machines Accessed 4 | . 3 1 Terminals 3 | . 3 . Fabricators . | . . . Repair Stations 1 | . . 1 Recycling Units . | . . . Scanalyzers . | . . . Garrison Access . | . . . Total Hacks 13 | . 9 4 Successful 7 | . 4 3 Failed 6 | . 5 1 Catastrophic 1 | . 1 . Database Lockouts . | . . . Manual 1 | . 1 . Terminals 9 | . 9 . Fabricators . | . . . Repair Stations 4 | . . 4 Recycling Units . | . . . Scanalyzers . | . . . Garrison Access . | . . . Terminal Hacks 4 | . 4 . Prototype ID Bank 1 | . 1 . Emergency Access Points 1 | . 1 . Transport Status 1 | . 1 . Hauler Manifests 1 | . 1 . Fabricator Hacks . | . . . Repair Station Hacks 3 | . . 3 Scan Component 2 | . . 2 Repair 1 | . . 1 Recycling Unit Hacks . | . . . Scanalyzer . | . . . Garrison Access Hacks . | . . . Unauthorized Hacks . | . . . Terminals . | . . . Fabricators . | . . . Repair Stations . | . . . Recycling Units . | . . . Scanalyzers . | . . . Garrison Access . | . . . Data Cores Recovered . | . . . Used . | . . . Hacking Detections 2 | . 1 1 Full Trace Events 1 | . 1 . Feedback Events . | . . . Feedback Blocked . | . . . Robot Schematics Acquired . | . . . Robots Built . | . . . Authchips . | . . . Time . | . . . Total Robot Build Rating . | . . . Part Schematics Acquired . | . . . Parts Built . | . . . Authchips . | . . . Time . | . . . Total Part Build Rating . | . . . Part Studies Acquired . | . . . Parts Repaired 1 | . . 1 Time 26 | . . 26 Parts Recycled . | . . . Recycled Matter . | . . . Retrieved Matter . | . . . Retrieved Components . | . . . Parts Scanalyzed . | . . . Part Schematics Acquired . | . . . Parts Damaged . | . . . Bothacking | -11 -10 -9 ------------ Run | Yrd Mat Mat Used RIF Installer . | . . . Robots Hacked . | . . . Non-combat . | . . . Combat . | . . . Robot Hacks Applied . | . . . Relay Couplers Released . | . . . Fabnet Peak Effective % . | . . . Robots Rewired . | . . . Allies Hacked . | . . . Hacks Repelled . | . . . Allies | -11 -10 -9 -------- Run | Yrd Mat Mat Total Allies . | . . . Largest Group . | . . . Highest-Rated Group . | . . . Highest-Rated Ally . | . . . Total Orders . | . . . Ally Attacks . | . . . Total Damage . | . . . Kills . | . . . Allies Corrupted . | . . . Allies Melted . | . . . Intel | -11 -10 -9 ------- Run | Yrd Mat Mat Active Infowar (turns) 399 | . 226 173 Structural 399 | . 226 173 Robot Analysis Total . | . . . Derelict Logs Recovered . | . . . Drone Launches . | . . . Drone Recoveries . | . . . Exploration | -11 -10 -9 ------------- Run | Yrd Mat Mat Turns Passed 690 | 93 328 269 Spaces Moved 415 | 53 178 184 Core 16 | 7 . 9 Treads 224 | 46 178 . Legs . | . . . Wheels 139 | . . 139 Hover . | . . . Flight 36 | . . 36 Fastest Speed 50 | 50 160 95 Average Speed 131 | 145 160 99 Slowest Speed 160 | 160 160 115 Overloaded Moves . | . . . Propulsion Burnouts . | . . . Robots Hopped . | . . . Potential Cave-ins 2 | . . 2 Cave-ins Triggered . | . . . Exploration Rate (%) 21 | 4 41 20 Regions Visited 2 Branch Regions . Pre-discovered Areas . | . . . Known Exits Taken . | . . . Unknown Exits Taken 2 | 1 1 . Scrap Searched . | . . . Spaces Dug . | . . . Terrain Destroyed 104 | . 68 36 Melee . | . . . Projectile 1 | . 1 . AOE 103 | . 67 36 Terrain Rammed . | . . . Walls Destroyed . | . . . Machines Disabled . | . . . Actions | -11 -10 -9 --------- Run | Yrd Mat Mat Total 500 | 69 196 235 Wait 17 | . . 17 Move 413 | 52 177 184 Hop . | . . . Pick Up 18 | 11 3 4 Fast Attach . | . . . Attach 13 | 6 1 6 Detach . | . . . Swap 3 | . 2 1 Drop . | . . . Fire 31 | . 12 19 Melee . | . . . Ram 4 | . . 4 Kick . | . . . Crush 1 | . 1 . Escape Stasis . | . . . Rewire . | . . . Trap . | . . . Miscellaneous . | . . . Route ------- -11/Scrapyard -10/Materials -9/Materials History --------- Turn | Location | Event 27 | -11/Scrapyard | Discovered new exit (range 15) 94 | -11/Scrapyard | Entered Materials 294 | -10/Materials | Destroyed 8 combat bots 312 | -10/Materials | Build established: Mutant 364 | -10/Materials | Discovered new exit (range 7) 422 | -10/Materials | Entered another Materials area 422 | -9/Materials | Evolved 2 slots: Propulsion x1, Weapon x1 525 | -9/Materials | Repaired Grenade Launcher 665 | -9/Materials | Core integrity fell below 50% 686 | -9/Materials | Core integrity fell below 20% 691 | -9/Materials | Destroyed by Y-45 Defender with Beam Rifle Last Messages --------------- 00637_ K-01 Serf cleans the Electrolysis Chamber. 00638_ Lgt. Deuterium Engine destroyed. 00639_ Acquired VTOL Module. 00640_ Wheel destroyed. 00641_ K-01 Serf cleans the Fusion Modulator. 00642_ K-01 Serf collects debris. 00645_ K-01 Serf cleans the Fusion Modulator. 00645_ W-16 Scout sends out distress signal. 00645_ K-01 Serf cleans the Electrolysis Chamber. 00647_ ALERT: Hostiles spotted, dispatching reinforcements to Terminal M001. 00650_ Sml. Laser destroyed. 00652_ Slammed into S-10 Pest. 00665_ K-01 Serf collects debris. 00669_ Lgt. Assault Rifle destroyed. 00671_ K-01 Serf collects debris. 00682_ VTOL Module destroyed. 00688_ Electrolysis Chamber disabled. Map ----- +----------------------------------------------------+ | ???????????? # # ??????????? | | ???????????? + % # ??????????? | | ???????????? # # ??????????? | | ???????????? # % # ??????????? | | ???????????? # ######+###"" # ??????????? | | ???????????? ## ##### + # ??????????? | | ???????######## ###??????"?? # ????????????? | | ???? ! ! ###????????? # ?????????????? | | ???? #????????????????????????????? | | ????? """ "" #????????????????????????????? | | ???????""" T" #????????????????????????????? | | ????? """ "" #????????????????????????????? | | ????# #?????????######?????????????? | | ????# ########### #?????????????? | | ????# / #?????????????? | | ?????+## g s#### #?????????????? | | ???????# #??# #?????????????? | | ???????# """ """ g#### #?????????????? | | ???????# """ """s g + #?????????????? | | ???????######## """ """s #### #?????????????? | | ??????????????# #??# #?????????????? | | ??????????????# #??######?????????????? | | ??????????????# """ #?????????????????????? | | ??????????????# "" #?????????????????????? | | ??????????????# """ #?????????????????????? | | ??????????????# @ #?????????????????????? | | ??????????????#t !! Y#?????????????????????? | | ??????????????# !! #?????????????????????? | | ??????????????# !! "" #?????????????????????? | | ??????????????+ T" #?????????????????????? | | ??????????????# o "" +?????????????????????? | | ??????????????# #?????????????????????? | | ??????????????# +?????????????????????? | | ??????????????### #####+####?????????????????????? | | ????????????????# ???????????????????????????????? | | ????????????????#????????????????????????????????? | | ?????????????????????????????????????????????????? | | ?????????????????????????????????????????????????? | | ?????????????????????????????????????????????????? | | ?????????????????????????????????????????????????? | | ?????????????????????????????????????????????????? | | ?????????????????????????????????????????????????? | | ?????????????????????????????????????????????????? | | ?????????????????????????????????????????????????? | | ?????????????????????????????????????????????????? | | ?????????????????????????????????????????????????? | | ?????????????????????????????????????????????????? | | ?????????????????????????????????????????????????? | | ?????????????????????????????????????????????????? | | ?????????????????????????????????????????????????? | +----------------------------------------------------+ Best States ------------- Heat Dissipation 28 Energy Generation 14 Energy Capacity 140 Matter Stores 251 Matter Capacity 300 Sight Range 16 Terrain Scan Density 10 Evasion (%) 44 Recoil Reduction 2 Item Schematics ----------------- None Robot Schematics ------------------ None Fabricated ------------ Nothing Repaired ---------- Grenade Launcher | 8% | -9/Materials Studied --------- None Alien Tech Used ----------------- None Achievements -------------- None Challenges ------------ None Game ------ Seed AluminumDirectedActivator Manual? 0 Play Time 00:10:06 Cumulative 4.1 hours Start 2026.03.03 @ 12:25:47 End 2026.03.03 @ 12:33:33 Sessions 1 Manual Loads 0 Difficulty Rogue Special Mode None Game No. 18 Rogue 18 Adventurer 0 Explorer 0 Win Type - Total 0 Types 0/0/0/0/0/0/0/0/0/0 Lore% 3 Gallery% 8 Achievement% 7 Wizard Run 0 Options --------- Layout 1 ASCII 0 Keyboard 0 Movement Arrows Keybinds 0 Fullscreen 1 Font 24/Smallcaps Map View 50x35 Zoom Use 0% Tactical HUD 1 Map Filters NONE Filters NONE Steam 1 RUN: 4855280b-bbbc-4844-8483-3af9769d60bd